fUST/lending_fUST_20240721
["ID","MTS","AMOUNT","RATE_DAILY","PERIOD"]
[332744637,1721500245122,-500.0,0.00013698,2]
[332744638,1721500245132,-763.32,0.00013698,2]
[332744639,1721500245142,-741.17,0.00013698,2]
[332744640,1721500245151,-501.59185014,0.00013698,2]
[332744641,1721500245160,-500.0,0.00013698,2]
[332744642,1721500245169,-500.0,0.00013698,2]
[332744643,1721500245178,-500.0,0.00013698,2]
[332744644,1721500245187,-6337.81,0.00013698,2]
[332744645,1721500245197,-9974.88,0.00013698,2]
[332744646,1721500245206,-599.45,0.00013698,2]
[332744647,1721500245215,-1048.68,0.00013698,2]
[332744648,1721500245225,-499.97734961,0.00013698,2]
[332744649,1721500245234,-816.21,0.00013698,2]
[332744650,1721500245243,-500.81614324,0.00013698,2]
[332744651,1721500245253,-500.0,0.00013698,2]
[332744652,1721500245262,-596.66,0.00013698,2]
[332744653,1721500245271,-1003.63,0.00013698,2]
[332744654,1721500245281,-653.11,0.00013698,2]
[332744655,1721500245290,-922.66,0.00013698,2]
[332744656,1721500245299,-500.0,0.00013698,2]
[332744657,1721500245308,-500.0,0.00013698,2]
[332744658,1721500245318,-500.0,0.00013698,2]
[332744659,1721500245328,-500.0,0.00013698,2]
[332744660,1721500245338,-513.33275701,0.00013698,2]
[332744661,1721500245347,-213.5647246,0.00013698,2]
[332744662,1721500245356,-500.0,0.00013698,2]
[332744663,1721500245365,-3024.55,0.00013698,2]
[332744664,1721500245375,-500.0,0.00013698,2]
[332744665,1721500245384,-500.0,0.00013698,2]
[332744666,1721500245393,-9525.09,0.00013698,2]
[332744667,1721500245402,-4801.01,0.00013698,2]
[332744668,1721500245412,-601.56,0.00013698,2]
[332744669,1721500245421,-501.25801672,0.00013698,2]
[332744670,1721500245432,-500.0,0.00013698,2]
[332744671,1721500245442,-1226.56,0.00013698,2]
[332744672,1721500245455,-500.0,0.00013698,2]
[332744673,1721500245464,-500.0,0.00013698,2]
[332744674,1721500245474,-501.22838301,0.00013698,2]
[332744675,1721500245485,-500.0,0.00013698,2]
[332744676,1721500245494,-500.0,0.00013698,2]
[332744677,1721500245504,-2915.71,0.00013698,2]
[332744678,1721500245514,-500.0,0.00013698,2]
[332744679,1721500245524,-714.05,0.00013698,2]
[332744680,1721500245534,-626.75,0.00013698,2]
[332744681,1721500245543,-595.19,0.00013698,2]
[332744682,1721500245554,-5451.22,0.00013698,2]
[332744683,1721500245566,-559.3,0.00013698,2]
[332744684,1721500245576,-500.0,0.00013698,2]
[332744685,1721500245586,-2356.17,0.00013698,2]
[332744686,1721500245596,-2974.58,0.00013698,2]
[332744687,1721500245606,-500.0,0.00013698,2]
[332744688,1721500245616,-500.0,0.00013698,2]
[332744689,1721500245626,-500.0,0.00013698,2]
[332744690,1721500245638,-500.0,0.00013698,2]
[332744691,1721500245649,-5614.66,0.00013698,2]
[332744692,1721500245660,-500.0,0.00013698,2]
[332744693,1721500245671,-500.0,0.00013698,2]
[332744694,1721500245682,-500.0,0.00013698,2]
[332744695,1721500245692,-1042.91,0.00013698,2]
[332744696,1721500245707,-501.29419541,0.00013698,2]
[332744697,1721500245720,-7673.42,0.00013698,2]
[332744698,1721500245734,-1876.24,0.00013698,2]
[332744699,1721500245748,-2182.76,0.00013698,2]
[332744700,1721500245761,-19190.55,0.00013698,2]
[332744701,1721500245773,-500.0,0.00013698,2]
[332744702,1721500245785,-3547.7,0.00013698,2]
[332744703,1721500245799,-500.0,0.00013698,2]
[332744704,1721500245811,-500.0,0.00013698,2]
[332744705,1721500245822,-500.0,0.00013698,2]
[332744706,1721500245836,-500.0,0.00013698,2]
[332744707,1721500245849,-1594.52,0.00013698,2]
[332744708,1721500245861,-500.08985855,0.00013698,2]
[332744709,1721500245875,-505.7857432,0.00013698,2]
[332744710,1721500245889,-500.0,0.00013698,2]
[332744711,1721500245904,-3139.22,0.00013698,2]
[332744712,1721500245918,-500.0,0.00013698,2]
[332744713,1721500245929,-500.0,0.00013698,2]
[332744714,1721500245940,-501.52214706,0.00013698,2]
[332744715,1721500245951,-1164.01,0.00013698,2]
[332744716,1721500245963,-2479.41,0.00013698,2]
[332744717,1721500245978,-650.96,0.00013698,2]
[332744718,1721500245990,-3387.15,0.00013698,2]
[332744719,1721500246001,-789.3,0.00013698,2]
[332744720,1721500246015,-500.0,0.00013698,2]
[332744721,1721500246025,-503.42,0.00013698,2]
[332744722,1721500246035,-503.42,0.00013698,2]
[332744723,1721500246046,-503.42,0.00013698,2]
[332744724,1721500246059,-503.42,0.00013698,2]
[332744725,1721500246071,-503.42,0.00013698,2]
[332744726,1721500246084,-503.42,0.00013698,2]
[332744727,1721500246097,-1529.29,0.00013698,2]
[332744728,1721500246109,-503.42,0.00013698,2]
[332744729,1721500246120,-503.42,0.00013698,2]
[332744730,1721500246132,-503.42,0.00013698,2]
[332744731,1721500246146,-503.42,0.00013698,2]
[332744733,1721500246158,-503.42,0.00013698,2]
[332744735,1721500246171,-505.99,0.00013698,2]
[332744736,1721500246182,-500.0,0.00013698,2]
[332744737,1721500246193,-930.37,0.00013698,2]
[332744738,1721500246202,-1165.16,0.00013698,2]
[332744739,1721500246212,-8367.45,0.00013698,2]
[332744740,1721500246223,-718.79,0.00013698,2]
[332744741,1721500246234,-500.0,0.00013698,2]
[332744742,1721500246246,-500.0,0.00013698,2]
[332744743,1721500246258,-2305.92,0.00013698,2]
[332744745,1721500246269,-2969.09,0.00013698,2]
[332744747,1721500246281,-791.71,0.00013698,2]
[332744748,1721500246290,-500.0,0.00013698,2]
[332744750,1721500246301,-500.0,0.00013698,2]
[332744752,1721500246313,-500.0,0.00013698,2]
[332744753,1721500246324,-1463.89,0.00013698,2]
[332744754,1721500246336,-517.43758687,0.00013698,2]
[332744755,1721500246348,-4166.01,0.00013698,2]
[332744756,1721500246358,-643.3,0.00013698,2]
[332744757,1721500246369,-500.0,0.00013698,2]
[332744758,1721500246379,-500.0,0.00013698,2]
[332744759,1721500246389,-500.0,0.00013698,2]
[332744760,1721500246400,-2190.32,0.00013698,2]
[332744761,1721500246410,-500.0,0.00013698,2]
[332744762,1721500246421,-500.0,0.00013698,2]
[332744763,1721500246431,-500.0,0.00013698,2]
[332744764,1721500246441,-624.9,0.00013698,2]
[332744765,1721500246452,-546.53,0.00013698,2]
[332744766,1721500246463,-594.15,0.00013698,2]
[332744767,1721500246474,-1267.92,0.00013698,2]
[332744768,1721500246484,-5219.53,0.00013698,2]
[332744769,1721500246496,-877.92,0.00013698,2]
[332744770,1721500246507,-656.43,0.00013698,2]
[332744772,1721500246518,-465.25885834,0.00013698,2]
[332744774,1721500246529,-500.0,0.00013698,2]
[332744776,1721500246540,-500.0,0.00013698,2]
[332744778,1721500246551,-4206.24,0.00013698,2]
[332744780,1721500246562,-4206.24,0.00013698,2]
[332744782,1721500246573,-4206.24,0.00013698,2]
[332744784,1721500246585,-500.0,0.00013698,2]
[332744786,1721500246596,-4206.24,0.00013698,2]
[332744788,1721500246607,-500.0,0.00013698,2]
[332744790,1721500246618,-4206.24,0.00013698,2]
[332744792,1721500246629,-4206.24,0.00013698,2]
[332744795,1721500246640,-4206.24,0.00013698,2]
[332744797,1721500246651,-4206.24,0.00013698,2]
[332744799,1721500246662,-500.0,0.00013698,2]
[332744801,1721500246673,-4206.24,0.00013698,2]
[332744803,1721500246684,-4206.24,0.00013698,2]
[332744805,1721500246694,-4206.24,0.00013698,2]
[332744807,1721500246705,-1839.8,0.00013698,2]
[332744809,1721500246715,-4206.24,0.00013698,2]
[332744812,1721500246729,-500.0,0.00013698,2]
[332744814,1721500246740,-4206.24,0.00013698,2]
[332744816,1721500246751,-4206.24,0.00013698,2]
[332744818,1721500246762,-4206.24,0.00013698,2]
[332744820,1721500246773,-800.39,0.00013698,2]
[332744821,1721500246784,-4206.24,0.00013698,2]
[332744823,1721500246795,-4206.24,0.00013698,2]
[332744824,1721500246806,-4206.24,0.00013698,2]
[332744825,1721500246817,-1627.8,0.00013698,2]
[332744826,1721500246829,-4206.24,0.00013698,2]
[332744827,1721500246840,-500.0,0.00013698,2]
[332744828,1721500246852,-4206.24,0.00013698,2]
[332744829,1721500246863,-500.0,0.00013698,2]
[332744830,1721500246873,-4206.24,0.00013698,2]
[332744831,1721500246884,-500.0,0.00013698,2]
[332744832,1721500246895,-4206.24,0.00013698,2]
[332744833,1721500246907,-500.0,0.00013698,2]
[332744834,1721500246919,-506.666072,0.00013698,2]
[332744835,1721500246930,-500.0,0.00013698,2]
[332744836,1721500246940,-4206.24,0.00013698,2]
[332744837,1721500246951,-500.0,0.00013698,2]
[332744838,1721500246963,-4206.43423838,0.00013698,2]
[332744839,1721500246975,-3266.7,0.00013698,2]
[332744840,1721500246987,-500.0,0.00013698,2]
[332744841,1721500246999,-500.0,0.00013698,2]
[332744842,1721500247010,-500.0,0.00013698,2]
[332744843,1721500247022,-500.0,0.00013698,2]
[332744844,1721500247033,-500.0,0.00013698,2]
[332744845,1721500247044,-219.09698425,0.00013698,2]
[332744846,1721500247058,-500.0,0.00013698,2]
[332744847,1721500247069,-500.0,0.00013698,2]
[332744848,1721500247080,-500.0,0.00013698,2]
[332744849,1721500247091,-500.0,0.00013698,2]
[332744850,1721500247102,-500.0,0.00013698,2]
[332744851,1721500247113,-500.0,0.00013698,2]
[332744852,1721500247124,-500.0,0.00013698,2]
[332744853,1721500247135,-500.0,0.00013698,2]
[332744854,1721500247146,-500.0,0.00013698,2]
[332744855,1721500247157,-500.0,0.00013698,2]
[332744856,1721500247168,-273.70156827,0.00013698,2]
[332744857,1721500247180,-2178.19,0.00013698,2]
[332744858,1721500247191,-1202.04,0.00013698,2]
[332744859,1721500247202,-500.0,0.00013698,2]
[332744860,1721500247213,-1240.33,0.00013698,2]
[332744861,1721500247225,-500.0,0.00013698,2]
[332744862,1721500247236,-500.0,0.00013698,2]
[332744863,1721500247247,-500.0,0.00013698,2]
[332744864,1721500247258,-345.18233406,0.00013698,2]
[332744865,1721500247270,-500.0,0.00013698,2]
[332744866,1721500247281,-568.38256445,0.00013698,2]
[332744867,1721500247292,-533.97409384,0.00013698,2]
[332744868,1721500247304,-983.82,0.00013698,2]
[332744869,1721500247315,-509.82043443,0.00013698,2]
[332744870,1721500247327,-3487.3,0.00013698,2]
[332744871,1721500247337,-500.0,0.00013698,2]
[332744872,1721500247348,-15542.84,0.00013698,2]
[332744873,1721500247359,-500.0,0.00013698,2]
[332744874,1721500247371,-580.38,0.00013698,2]
[332744875,1721500247382,-549.5,0.00013698,2]
[332744876,1721500247393,-524.66,0.00013698,2]
[332744877,1721500247405,-1491.24,0.00013698,2]
[332744878,1721500247417,-955.87,0.00013698,2]
[332744879,1721500247429,-514.86963877,0.00013698,2]
[332744880,1721500247441,-2831.62,0.00013698,2]
[332744881,1721500247453,-500.0,0.00013698,2]
[332744882,1721500247465,-1594.87,0.00013698,2]
[332744883,1721500247476,-500.90625531,0.00013698,2]
[332744884,1721500247487,-500.0,0.00013698,2]
[332744885,1721500247499,-2697.92,0.00013698,2]
[332744886,1721500247511,-2917.77,0.00013698,2]
[332744887,1721500247522,-500.0,0.00013698,2]
[332744888,1721500247534,-500.0,0.00013698,2]
[332744889,1721500247544,-500.0,0.00013698,2]
[332744890,1721500247555,-500.0,0.00013698,2]
[332744891,1721500247567,-504.74873459,0.00013698,2]
[332744892,1721500247579,-500.0,0.00013698,2]
[332744893,1721500247590,-1810.39,0.00013698,2]
[332744894,1721500247603,-500.0,0.00013698,2]
[332744895,1721500247615,-41638.29,0.00013698,2]
[332744896,1721500247626,-500.0,0.00013698,2]
[332744897,1721500247637,-500.0,0.00013698,2]
[332744898,1721500247649,-3104.21,0.00013698,2]
[332744899,1721500247660,-501.15558744,0.00013698,2]
[332744900,1721500247671,-3104.21,0.00013698,2]
[332744901,1721500247682,-3104.21,0.00013698,2]
[332744902,1721500247693,-3104.21,0.00013698,2]
[332744903,1721500247704,-500.0,0.00013698,2]
[332744904,1721500247715,-1267.33,0.00013698,2]
[332744905,1721500247726,-946.79,0.00013698,2]
[332744906,1721500247737,-2158.72,0.00013698,2]
[332744907,1721500247749,-500.0,0.00013698,2]
[332744908,1721500247763,-500.0,0.00013698,2]
[332744909,1721500247775,-3104.21,0.00013698,2]
[332744910,1721500247786,-3104.21,0.00013698,2]
[332744911,1721500247798,-3104.21,0.00013698,2]
[332744912,1721500247808,-3104.21,0.00013698,2]
[332744913,1721500247819,-1311.4,0.00013698,2]
[332744914,1721500247830,-3104.21,0.00013698,2]
[332744915,1721500247842,-3104.21,0.00013698,2]
[332744916,1721500247854,-500.0,0.00013698,2]
[332744917,1721500247866,-3104.21,0.00013698,2]
[332744918,1721500247877,-504.29336531,0.00013698,2]
[332744919,1721500247888,-3104.21,0.00013698,2]
[332744920,1721500247899,-3104.21,0.00013698,2]
[332744921,1721500247911,-3104.21,0.00013698,2]
[332744922,1721500247923,-3104.21,0.00013698,2]
[332744923,1721500247934,-3104.21,0.00013698,2]
[332744924,1721500247947,-3104.21,0.00013698,2]
[332744925,1721500247959,-3104.21,0.00013698,2]
[332744926,1721500247971,-3104.21,0.00013698,2]
[332744927,1721500247986,-3104.21,0.00013698,2]
[332744928,1721500247998,-1593.24,0.00013698,2]
[332744929,1721500248009,-500.0,0.00013698,2]
[332744930,1721500248022,-1334.16,0.00013698,2]
[332744931,1721500248032,-3104.21,0.00013698,2]
[332744932,1721500248042,-3104.21,0.00013698,2]
[332744933,1721500248054,-820.06,0.00013698,2]
[332744934,1721500248065,-3104.21,0.00013698,2]
[332744935,1721500248076,-3104.37919494,0.00013698,2]
[332744936,1721500248088,-518.32,0.00013698,2]
[332744937,1721500248098,-500.0,0.00013698,2]
[332744938,1721500248112,-500.0,0.00013698,2]
[332744939,1721500248122,-500.3265989,0.00013698,2]
[332744940,1721500248133,-55500.97,0.00013698,2]
[332744941,1721500248144,-613.0113624,0.00013699,2]
[332744942,1721500248154,-1374.674225,0.00013699,2]
[332744943,1721500248164,-3000.0,0.00013699,2]
[332744944,1721500248176,-151.0,0.00013699,2]
[332744945,1721500248188,-151.0,0.00013699,2]
[332744946,1721500248198,-475.884335,0.00013699,2]
[332744947,1721500248209,-475.884335,0.00013699,2]
[332744948,1721500248219,-626.88006573,0.00013871,2]
[332744949,1721500248231,-250694.64617489,0.000139,2]
[332744950,1721500248241,-500.0,0.00013961,2]
[332744951,1721500248252,-500.0,0.00013961,2]
[332744952,1721500248263,-455.75116135,0.00013961,2]
[332744953,1721500248273,-503.42,0.00013961,2]
[332744954,1721500248284,-503.42,0.00013961,2]
[332744955,1721500248294,-503.42,0.00013961,2]
[332744956,1721500248305,-503.42,0.00013961,2]
[332744957,1721500248316,-503.42,0.00013961,2]
[332744958,1721500248660,-503.42,0.00013971,2]
[332744959,1721500248671,-503.42,0.00013971,2]
[332744960,1721500248681,-503.42,0.00013971,2]
[332744961,1721500248691,-503.42,0.00013971,2]
[332744962,1721500248700,-503.42,0.00013971,2]
[332744963,1721500248710,-503.42,0.00013971,2]
[332744964,1721500248721,-503.42,0.00013971,2]
[332744965,1721500248731,-503.52640636,0.00013971,2]
[332744966,1721500248740,-833.63,0.00013972,2]
[332744967,1721500248751,-500.0,0.00013972,2]
[332744968,1721500248761,-391.90915622,0.00013972,2]
[332744969,1721500248772,-500.0,0.00013972,2]
[332744970,1721500248783,-500.0,0.00013972,2]
[332744971,1721500248792,-500.0,0.00013972,2]
[332744972,1721500248803,-579.83,0.00013972,2]
[332744973,1721500248813,-504.399664,0.00013972,2]
[332744974,1721500248823,-790.83,0.00013972,2]
[332744975,1721500248835,-500.0,0.00013972,2]
[332744976,1721500248845,-500.0,0.00013972,2]
[332744977,1721500248856,-500.0,0.00013972,2]
[332744978,1721500248867,-500.0,0.00013972,2]
[332744979,1721500248877,-500.0,0.00013972,2]
[332744980,1721500248888,-500.0,0.00013972,2]
[332744981,1721500248898,-500.0,0.00013972,2]
[332744982,1721500248908,-500.0,0.00013972,2]
[332744983,1721500248918,-910.78,0.00013972,2]
[332744984,1721500248929,-155.98610733,0.00013972,2]
[332744985,1721500248940,-500.76394624,0.00013972,2]
[332744986,1721500248950,-500.0,0.00013972,2]
[332744987,1721500248961,-503.25317507,0.00013972,2]
[332744988,1721500248972,-796.91,0.00013972,2]
[332744989,1721500248985,-500.0,0.00013972,2]
[332744990,1721500248995,-878.74,0.00013972,2]
[332744991,1721500249006,-1045.53,0.00013972,2]
[332744992,1721500249015,-500.0,0.00013972,2]
[332744993,1721500249026,-500.0,0.00013972,2]
[332744994,1721500249036,-500.0,0.00013972,2]
[332744995,1721500249045,-571.33,0.00013972,2]
[332744996,1721500249056,-500.0,0.00013972,2]
[332744997,1721500249067,-511.37040743,0.00013972,2]
[332744998,1721500249077,-500.0,0.00013972,2]
[332744999,1721500249087,-622.68,0.00013972,2]
[332745000,1721500249097,-500.0,0.00013972,2]
[332745001,1721500249106,-500.0,0.00013972,2]
[332745002,1721500249117,-500.0,0.00013972,2]
[332745003,1721500249127,-500.0,0.00013972,2]
[332745004,1721500249138,-291.97498847,0.00013972,2]
[332745005,1721500249147,-313.35768215,0.00013972,2]
[332745006,1721500249157,-500.0,0.00013972,2]
[332745007,1721500249167,-500.0,0.00013972,2]
[332745008,1721500249178,-500.0,0.00013972,2]
[332745009,1721500249188,-500.0,0.00013972,2]
[332745010,1721500249199,-500.0,0.00013972,2]
[332745011,1721500249209,-500.0,0.00013972,2]
[332745012,1721500249219,-500.0,0.00013972,2]
[332745013,1721500249229,-500.0,0.00013972,2]
[332745014,1721500249240,-500.0,0.00013972,2]
[332745015,1721500249251,-1118.5,0.00013972,2]
[332745016,1721500249262,-500.0,0.00013972,2]
[332745017,1721500249272,-500.0,0.00013972,2]
[332745018,1721500249282,-500.0,0.00013972,2]
[332745019,1721500249292,-500.0,0.00013972,2]
[332745020,1721500249303,-500.0,0.00013972,2]
[332745021,1721500249313,-508.80795726,0.00013972,2]
[332745022,1721500249323,-503.55316172,0.00013972,2]
[332745023,1721500249335,-508.09394379,0.00013972,2]
[332745024,1721500249345,-594.43,0.00013972,2]
[332745025,1721500249355,-500.0,0.00013972,2]
[332745026,1721500249366,-500.0,0.00013972,2]
[332745027,1721500249376,-540.15,0.00013972,2]
[332745028,1721500249387,-501.64253833,0.00013972,2]
[332745029,1721500249398,-500.0,0.00013972,2]
[332745030,1721500249407,-500.0,0.00013972,2]
[332745031,1721500249418,-500.0,0.00013972,2]
[332745032,1721500249428,-679.33,0.00013972,2]
[332745033,1721500249438,-151.0,0.00013972,2]
[332745034,1721500249448,-500.0,0.00013972,2]
[332745035,1721500249458,-500.0,0.00013972,2]
[332745036,1721500249469,-500.0,0.00013972,2]
[332745037,1721500249479,-500.0,0.00013972,2]
[332745038,1721500249489,-500.0,0.00013972,2]
[332745039,1721500249500,-150.0,0.00013972,2]
[332745040,1721500249510,-883.27,0.00013972,2]
[332745041,1721500249519,-618.28186363,0.00013972,2]
[332745042,1721500249529,-500.0,0.00013972,2]
[332745043,1721500249539,-500.0,0.00013972,2]
[332745044,1721500249548,-1066.04,0.00013972,2]
[332745045,1721500249559,-471.64085717,0.00013972,2]
[332745046,1721500249570,-651.66,0.00013972,2]
[332745047,1721500249582,-500.0,0.00013972,2]
[332745048,1721500249591,-500.0,0.00013972,2]
[332745049,1721500249601,-500.0,0.00013972,2]
[332745050,1721500249610,-2266.53,0.00013972,2]
[332745051,1721500249620,-500.0,0.00013972,2]
[332745052,1721500249630,-500.0,0.00013972,2]
[332745053,1721500249640,-500.0,0.00013972,2]
[332745054,1721500249649,-255.62,0.00013972,2]
[332745055,1721500249659,-500.0,0.00013972,2]
[332745056,1721500249668,-500.0,0.00013972,2]
[332745057,1721500249679,-500.0,0.00013972,2]
[332745058,1721500249689,-500.0,0.00013972,2]
[332745059,1721500249700,-529.69,0.00013972,2]
[332745060,1721500249710,-500.0,0.00013972,2]
[332745061,1721500249720,-500.0,0.00013972,2]
[332745062,1721500249731,-500.0,0.00013972,2]
[332745063,1721500249742,-256.28354357,0.00013972,2]
[332745064,1721500249753,-500.0,0.00013972,2]
[332745065,1721500249763,-500.0,0.00013972,2]
[332745066,1721500249772,-500.0,0.00013972,2]
[332745067,1721500249782,-500.0,0.00013972,2]
[332745068,1721500249792,-503.98,0.00013972,2]
[332745069,1721500249801,-2399.27,0.00013972,2]
[332745070,1721500249811,-529.26846187,0.00013972,2]
[332745071,1721500249821,-500.0,0.00013972,2]
[332745072,1721500249831,-542.0321779,0.00013972,2]
[332745073,1721500249842,-500.0,0.00013972,2]
[332745074,1721500249851,-500.0,0.00013972,2]
[332745075,1721500249861,-500.0,0.00013972,2]
[332745076,1721500249873,-642.9,0.00013972,2]
[332745077,1721500249883,-500.0,0.00013972,2]
[332745078,1721500249892,-500.0,0.00013972,2]
[332745079,1721500249902,-500.0,0.00013972,2]
[332745080,1721500249911,-538.03,0.00013972,2]
[332745081,1721500249921,-500.0,0.00013972,2]
[332745082,1721500249931,-500.0,0.00013972,2]
[332745083,1721500249940,-500.0,0.00013972,2]
[332745084,1721500249949,-170.43129503,0.00013972,2]
[332745085,1721500249959,-500.0,0.00013972,2]
[332745086,1721500249968,-690.28,0.00013972,2]
[332745087,1721500249982,-500.0,0.00013972,2]
[332745088,1721500249992,-1386.39,0.00013972,2]
[332745089,1721500250001,-500.0,0.00013972,2]
[332745090,1721500250011,-1782.45,0.00013972,2]
[332745091,1721500250022,-819.96,0.00013972,2]
[332745092,1721500250031,-521.24,0.00013972,2]
[332745093,1721500250040,-850.61,0.00013972,2]
[332745094,1721500250051,-500.0,0.00013972,2]
[332745095,1721500250060,-500.0,0.00013972,2]
[332745096,1721500250070,-289.40371987,0.00013972,2]
[332745097,1721500250079,-500.0,0.00013972,2]
[332745098,1721500250089,-644.82,0.00013972,2]
[332745099,1721500250098,-563.29,0.00013972,2]
[332745100,1721500250107,-723.75,0.00013972,2]
[332745101,1721500250116,-151.0,0.00013972,2]
[332745102,1721500250125,-3096.21,0.00013972,2]
[332745103,1721500250135,-500.0,0.00013972,2]
[332745104,1721500250145,-500.0,0.00013972,2]
[332745105,1721500250154,-500.0,0.00013972,2]
[332745106,1721500250163,-633.4,0.00013972,2]
[332745107,1721500250173,-595.13,0.00013972,2]
[332745108,1721500250183,-503.24791271,0.00013972,2]
[332745109,1721500250191,-539.6,0.00013972,2]
[332745110,1721500250201,-500.0,0.00013972,2]
[332745111,1721500250210,-621.08,0.00013972,2]
[332745112,1721500250219,-500.0,0.00013972,2]
[332745113,1721500250228,-500.0,0.00013972,2]
[332745114,1721500250237,-500.0,0.00013972,2]
[332745115,1721500250247,-1171.4,0.00013972,2]
[332745116,1721500250256,-2392.2,0.00013972,2]
[332745117,1721500250265,-2257.63,0.00013972,2]
[332745118,1721500250275,-575.81,0.00013972,2]
[332745119,1721500250284,-500.0,0.00013972,2]
[332745120,1721500250293,-553.59452076,0.00013972,2]
[332745121,1721500250303,-500.0,0.00013972,2]
[332745122,1721500250312,-3478.77,0.00013972,2]
[332745123,1721500250321,-500.0,0.00013972,2]
[332745124,1721500250331,-500.0,0.00013972,2]
[332745125,1721500250340,-500.0,0.00013972,2]
[332745126,1721500250350,-2385.11,0.00013972,2]
[332745127,1721500250359,-500.0,0.00013972,2]
[332745128,1721500250367,-929.7,0.00013972,2]
[332745129,1721500250376,-500.0,0.00013972,2]
[332745130,1721500250385,-500.0,0.00013972,2]
[332745131,1721500250394,-500.0,0.00013972,2]
[332745132,1721500250403,-1909.86,0.00013972,2]
[332745133,1721500250414,-1051.01,0.00013972,2]
[332745134,1721500250423,-507.77956758,0.00013972,2]
[332745135,1721500250433,-500.0,0.00013972,2]
[332745136,1721500250443,-500.0,0.00013972,2]
[332745137,1721500250453,-1075.39,0.00013972,2]
[332745138,1721500250464,-500.0,0.00013972,2]
[332745139,1721500250474,-500.0,0.00013972,2]
[332745140,1721500250485,-1189.46,0.00013972,2]
[332745141,1721500250495,-536.17445901,0.00013972,2]
[332745142,1721500250505,-500.0,0.00013972,2]
[332745143,1721500250515,-500.0,0.00013972,2]
[332745144,1721500250524,-688.18,0.00013972,2]
[332745145,1721500250533,-500.0,0.00013972,2]
[332745146,1721500250543,-500.0,0.00013972,2]
[332745147,1721500250552,-796.37,0.00013972,2]
[332745148,1721500250561,-1176.28,0.00013972,2]
[332745149,1721500250571,-500.0,0.00013972,2]
[332745150,1721500250582,-693.44,0.00013972,2]
[332745151,1721500250592,-500.0,0.00013972,2]
[332745152,1721500250602,-500.0,0.00013972,2]
[332745153,1721500250612,-500.0,0.00013972,2]
[332745154,1721500250622,-500.0,0.00013972,2]
[332745155,1721500250634,-500.0,0.00013972,2]
[332745156,1721500250644,-500.0,0.00013972,2]
[332745157,1721500250653,-500.0,0.00013972,2]
[332745158,1721500250663,-510.42578769,0.00013972,2]
[332745159,1721500250672,-504.00214773,0.00013972,2]
[332745160,1721500250682,-617.69,0.00013972,2]
[332745161,1721500250691,-620.43,0.00013972,2]
[332745162,1721500250700,-912.35,0.00013972,2]
[332745163,1721500250710,-509.41848931,0.00013972,2]
[332745164,1721500250719,-500.0,0.00013972,2]
[332745165,1721500250728,-1890.28,0.00013972,2]
[332745166,1721500250737,-506.63376774,0.00013972,2]
[332745167,1721500250748,-500.0,0.00013972,2]
[332745168,1721500250758,-500.0,0.00013972,2]
[332745169,1721500250769,-521.161017,0.00013972,2]